[Event "Early-Titled-Tuesday-Blitz-August-29-2023"]
[Site "Chess.com"]
[Date "2023.08.29"]
[Round "1"]
[White "komogro"]
[Black "Rsnr"]
[Result "0-1"]
[WhiteElo "2477"]
[BlackElo "2901"]
[TimeControl "180+1"]
[EndTime "8:07:49 PDT"]
[Termination "Rsnr won on time"]

1. Nf3 {[%clk 0:02:58.5]} 1... d5 {[%clk 0:02:59.5]} 2. d4 {[%clk 0:02:58.9]}
2... Nf6 {[%clk 0:02:59.6]} 3. c4 {[%clk 0:02:59.7]} 3... c6 {[%clk 0:03:00.2]}
4. Nc3 {[%clk 0:02:59.8]} 4... dxc4 {[%clk 0:02:59]} 5. a4 {[%clk 0:03:00]} 5...
Bf5 {[%clk 0:02:59.3]} 6. e3 {[%clk 0:03:00.3]} 6... e6 {[%clk 0:02:59.6]} 7.
Bxc4 {[%clk 0:03:00.6]} 7... Bb4 {[%clk 0:03:00.2]} 8. O-O {[%clk 0:03:00.9]}
8... Nbd7 {[%clk 0:03:00.9]} 9. Qe2 {[%clk 0:03:01.6]} 9... Bg6 {[%clk
0:02:59.8]} 10. Rd1 {[%clk 0:02:58.4]} 10... O-O {[%clk 0:02:59.4]} 11. Ne5
{[%clk 0:02:56.5]} 11... Nxe5 {[%clk 0:02:47.8]} 12. dxe5 {[%clk 0:02:55.7]}
12... Nd7 {[%clk 0:02:48.7]} 13. f4 {[%clk 0:02:43.1]} 13... Qe7 {[%clk
0:02:42.3]} 14. Bd2 {[%clk 0:02:40.2]} 14... Nb6 {[%clk 0:02:41.1]} 15. Bb3
{[%clk 0:02:39.9]} 15... a5 {[%clk 0:02:38.6]} 16. Kh1 {[%clk 0:02:35.9]} 16...
Rfd8 {[%clk 0:02:38.1]} 17. e4 {[%clk 0:02:30.5]} 17... Qh4 {[%clk 0:02:28.1]}
18. Be3 {[%clk 0:02:26.7]} 18... Bh5 {[%clk 0:02:23.9]} 19. Rxd8+ {[%clk
0:02:17.1]} 19... Rxd8 {[%clk 0:02:24.5]} 20. Qf2 {[%clk 0:02:13.1]} 20... Qxf2
{[%clk 0:02:23]} 21. Bxf2 {[%clk 0:02:14]} 21... Nc8 {[%clk 0:02:10.3]} 22. Be3
{[%clk 0:02:07.6]} 22... Rd3 {[%clk 0:02:07.5]} 23. Re1 {[%clk 0:02:06.1]} 23...
Kf8 {[%clk 0:01:45.2]} 24. h3 {[%clk 0:01:54.8]} 24... Bxc3 {[%clk 0:01:41.7]}
25. bxc3 {[%clk 0:01:54.5]} 25... Rxc3 {[%clk 0:01:42.6]} 26. Ba2 {[%clk
0:01:45.1]} 26... Bg6 {[%clk 0:01:24.8]} 27. Bd4 {[%clk 0:00:52.3]} 27... Rc2
{[%clk 0:01:11.3]} 28. Bb3 {[%clk 0:00:50.2]} 28... Rd2 {[%clk 0:01:11.2]} 29.
Bc5+ {[%clk 0:00:48.7]} 29... Ke8 {[%clk 0:01:11.1]} 30. Re3 {[%clk 0:00:20.2]}
30... b6 {[%clk 0:00:58.4]} 31. Ba3 {[%clk 0:00:19.3]} 31... c5 {[%clk
0:00:56.7]} 32. g4 {[%clk 0:00:19.2]} 32... Rd3 {[%clk 0:00:56.3]} 33. Bc1
{[%clk 0:00:07.1]} 33... Bxe4+ {[%clk 0:00:50.9]} 34. Kg1 {[%clk 0:00:07.2]}
34... Rxe3 {[%clk 0:00:50.7]} 35. Bxe3 {[%clk 0:00:08.1]} 35... Ne7 {[%clk
0:00:48.5]} 36. Kf2 {[%clk 0:00:07]} 36... Nc6 {[%clk 0:00:43.7]} 37. Bc4 {[%clk
0:00:06.5]} 37... Ke7 {[%clk 0:00:42.3]} 38. Kg3 {[%clk 0:00:03.6]} 38... f6
{[%clk 0:00:42]} 39. exf6+ {[%clk 0:00:03.2]} 39... gxf6 {[%clk 0:00:42.6]} 40.
h4 {[%clk 0:00:03.1]} 40... Bc2 {[%clk 0:00:41.5]} 41. g5 {[%clk 0:00:03.3]}
41... Bxa4 {[%clk 0:00:38.8]} 42. Bd3 {[%clk 0:00:04]} 42... f5 {[%clk 0:00:35]}
43. h5 {[%clk 0:00:03.1]} 43... Nb4 {[%clk 0:00:34.5]} 44. Bb1 {[%clk
0:00:03.3]} 44... Bc2 {[%clk 0:00:32.3]} 45. Bxc2 {[%clk 0:00:02.9]} 45... Nxc2
{[%clk 0:00:32.9]} 46. Bd2 {[%clk 0:00:03.8]} 46... Nd4 {[%clk 0:00:32.5]} 47.
h6 {[%clk 0:00:04.4]} 47... Kf7 {[%clk 0:00:32.3]} 48. Bc3 {[%clk 0:00:03.1]}
48... Ne2+ {[%clk 0:00:32]} 49. Kf2 {[%clk 0:00:01.7]} 49... Nxc3 {[%clk
0:00:32.8]} 0-1

[Event "Early-Titled-Tuesday-Blitz-August-29-2023"]
[Site "Chess.com"]
[Date "2023.08.29"]
[Round "1"]
[White "Itk04"]
[Black "NasirAkylbekov"]
[Result "0-1"]
[WhiteElo "2672"]
[BlackElo "2422"]
[TimeControl "180+1"]
[EndTime "8:07:50 PDT"]
[Termination "NasirAkylbekov won by resignation"]

1. d4 {[%clk 0:03:00.9]} 1... Nf6 {[%clk 0:02:43.7]} 2. c4 {[%clk 0:02:57.7]}
2... e6 {[%clk 0:02:43.7]} 3. Nc3 {[%clk 0:02:57.8]} 3... Bb4 {[%clk 0:02:42.9]}
4. Nf3 {[%clk 0:02:54]} 4... O-O {[%clk 0:02:40.8]} 5. g3 {[%clk 0:02:50.6]}
5... b6 {[%clk 0:02:40.7]} 6. Bg2 {[%clk 0:02:50.3]} 6... Bb7 {[%clk 0:02:40.4]}
7. O-O {[%clk 0:02:50]} 7... Bxc3 {[%clk 0:02:40.9]} 8. bxc3 {[%clk 0:02:49.9]}
8... d6 {[%clk 0:02:41.6]} 9. Qc2 {[%clk 0:02:42.2]} 9... Be4 {[%clk 0:02:40.9]}
10. Qb3 {[%clk 0:02:38.5]} 10... Nbd7 {[%clk 0:02:40.9]} 11. a4 {[%clk
0:02:28.8]} 11... Qe7 {[%clk 0:02:39]} 12. a5 {[%clk 0:02:01.7]} 12... h6 {[%clk
0:02:35.3]} 13. Ba3 {[%clk 0:01:55.9]} 13... c5 {[%clk 0:02:33.6]} 14. Qa4
{[%clk 0:01:48.7]} 14... Rfc8 {[%clk 0:02:27]} 15. Rfd1 {[%clk 0:01:46.4]} 15...
Bc6 {[%clk 0:02:23.7]} 16. Qc2 {[%clk 0:01:47]} 16... Be4 {[%clk 0:02:23]} 17.
Qa4 {[%clk 0:01:27.1]} 17... Bc6 {[%clk 0:01:44.9]} 18. Qb3 {[%clk 0:01:24.7]}
18... Rab8 {[%clk 0:01:40.3]} 19. axb6 {[%clk 0:01:18]} 19... Rxb6 {[%clk
0:01:30.3]} 20. Qa2 {[%clk 0:01:18.1]} 20... Rcb8 {[%clk 0:01:26.6]} 21. Rab1
{[%clk 0:01:09]} 21... Be4 {[%clk 0:01:23.2]} 22. Rxb6 {[%clk 0:01:08.4]} 22...
Rxb6 {[%clk 0:01:16.7]} 23. Nd2 {[%clk 0:01:05.3]} 23... Bxg2 {[%clk 0:01:15.8]}
24. Kxg2 {[%clk 0:01:06.2]} 24... Qd8 {[%clk 0:01:11.3]} 25. Rb1 {[%clk
0:01:03.9]} 25... Qc7 {[%clk 0:01:10.5]} 26. f3 {[%clk 0:00:59.6]} 26... d5
{[%clk 0:01:05.2]} 27. dxc5 {[%clk 0:00:49.3]} 27... Nxc5 {[%clk 0:01:05.1]} 28.
Bxc5 {[%clk 0:00:45.4]} 28... Qxc5 {[%clk 0:01:04.3]} 29. Qxa7 {[%clk
0:00:44.9]} 29... Rc6 {[%clk 0:01:01.3]} 30. Rb8+ {[%clk 0:00:36.4]} 30... Kh7
{[%clk 0:01:00.3]} 31. Qxc5 {[%clk 0:00:34.1]} 31... Rxc5 {[%clk 0:01:00.2]} 32.
Rb5 {[%clk 0:00:35]} 32... Rc7 {[%clk 0:00:57.5]} 33. Rb4 {[%clk 0:00:29.6]}
33... dxc4 {[%clk 0:00:51.6]} 34. e4 {[%clk 0:00:29.8]} 34... Rd7 {[%clk
0:00:44.5]} 35. Nxc4 {[%clk 0:00:30.2]} 35... Rd3 {[%clk 0:00:44.9]} 36. Rb3
{[%clk 0:00:30.5]} 36... Nd7 {[%clk 0:00:44.1]} 37. Kf2 {[%clk 0:00:26.1]} 37...
Nc5 {[%clk 0:00:43.1]} 38. Ra3 {[%clk 0:00:25.4]} 38... Rd1 {[%clk 0:00:42.7]}
39. Ke2 {[%clk 0:00:15.9]} 39... Rh1 {[%clk 0:00:42.1]} 40. h4 {[%clk
0:00:16.5]} 40... f6 {[%clk 0:00:28.5]} 41. Ra5 {[%clk 0:00:16.7]} 41... Nb3
{[%clk 0:00:28.6]} 42. Rb5 {[%clk 0:00:17.3]} 42... Rh2+ {[%clk 0:00:26.3]} 43.
Kd1 {[%clk 0:00:10.7]} 43... Rh1+ {[%clk 0:00:26.5]} 44. Kc2 {[%clk 0:00:11]}
44... Nc1 {[%clk 0:00:26.9]} 45. Kd2 {[%clk 0:00:09.4]} 45... Na2 {[%clk
0:00:23.5]} 46. Rb2 {[%clk 0:00:09.3]} 46... Rh2+ {[%clk 0:00:23.4]} 47. Kd3
{[%clk 0:00:04.8]} 47... Nc1+ {[%clk 0:00:23.6]} 48. Kd4 {[%clk 0:00:04.8]}
48... e5+ {[%clk 0:00:23.2]} 49. Kc5 {[%clk 0:00:04.9]} 49... Nd3+ {[%clk
0:00:22.2]} 50. Kd5 {[%clk 0:00:05.5]} 50... Nxb2 {[%clk 0:00:22.4]} 0-1

[Event "Early-Titled-Tuesday-Blitz-August-29-2023"]
[Site "Chess.com"]
[Date "2023.08.29"]
[Round "1"]
[White "Perecke"]
[Black "Chessmissile07"]
[Result "1-0"]
[WhiteElo "2462"]
[BlackElo "2843"]
[TimeControl "180+1"]
[EndTime "8:07:52 PDT"]
[Termination "Perecke won by checkmate"]

1. e4 {[%clk 0:03:00.9]} 1... g6 {[%clk 0:02:53.7]} 2. d4 {[%clk 0:03:00.9]}
2... Nf6 {[%clk 0:02:53.6]} 3. Nc3 {[%clk 0:03:01]} 3... d5 {[%clk 0:02:53.8]}
4. e5 {[%clk 0:02:57.3]} 4... Ne4 {[%clk 0:02:53.8]} 5. Nce2 {[%clk 0:02:55.2]}
5... f6 {[%clk 0:02:53]} 6. f3 {[%clk 0:02:52.4]} 6... Ng5 {[%clk 0:02:53.1]} 7.
Bxg5 {[%clk 0:02:48.9]} 7... fxg5 {[%clk 0:02:54]} 8. Ng3 {[%clk 0:02:45.8]}
8... c5 {[%clk 0:02:50]} 9. Bb5+ {[%clk 0:02:42]} 9... Nc6 {[%clk 0:02:49.8]}
10. Bxc6+ {[%clk 0:02:41.5]} 10... bxc6 {[%clk 0:02:50.7]} 11. N1e2 {[%clk
0:02:42.3]} 11... cxd4 {[%clk 0:02:43.5]} 12. Nxd4 {[%clk 0:02:42.1]} 12... c5
{[%clk 0:02:43.6]} 13. Nb3 {[%clk 0:02:40]} 13... Ba6 {[%clk 0:02:34.9]} 14. Ne2
{[%clk 0:02:32.7]} 14... Bg7 {[%clk 0:02:25.7]} 15. O-O {[%clk 0:02:25.2]} 15...
Bxe5 {[%clk 0:02:25.4]} 16. Nxc5 {[%clk 0:02:19.1]} 16... Bxe2 {[%clk
0:02:25.3]} 17. Qxe2 {[%clk 0:02:10.9]} 17... Bd4+ {[%clk 0:02:22.1]} 18. Kh1
{[%clk 0:02:11.3]} 18... Bxc5 {[%clk 0:02:22.4]} 19. Qb5+ {[%clk 0:02:11.2]}
19... Qd7 {[%clk 0:02:14.9]} 20. Qxc5 {[%clk 0:02:12.1]} 20... Rc8 {[%clk
0:02:15]} 21. Qd4 {[%clk 0:02:09.9]} 21... O-O {[%clk 0:02:11.5]} 22. c3 {[%clk
0:02:09.8]} 22... e6 {[%clk 0:02:04]} 23. Rfe1 {[%clk 0:02:06.3]} 23... Rc6
{[%clk 0:01:59.8]} 24. Re2 {[%clk 0:02:01.5]} 24... Rf4 {[%clk 0:01:53.8]} 25.
Qe5 {[%clk 0:01:59]} 25... Qd6 {[%clk 0:01:51.5]} 26. Qxg5 {[%clk 0:01:54.1]}
26... Rf5 {[%clk 0:01:49.6]} 27. Qe3 {[%clk 0:01:53.2]} 27... Rb6 {[%clk
0:01:43.8]} 28. Rae1 {[%clk 0:01:51.6]} 28... Rf7 {[%clk 0:01:39.8]} 29. a4
{[%clk 0:01:47.7]} 29... a5 {[%clk 0:01:38.5]} 30. Qd4 {[%clk 0:01:16.5]} 30...
Rf4 {[%clk 0:01:33.6]} 31. Qd3 {[%clk 0:01:11.2]} 31... Qd7 {[%clk 0:01:28.9]}
32. h3 {[%clk 0:01:07.5]} 32... Rxa4 {[%clk 0:01:27.8]} 33. Qe3 {[%clk 0:00:59]}
33... Qc7 {[%clk 0:00:57.4]} 34. Qg5 {[%clk 0:00:53.7]} 34... Ra2 {[%clk
0:00:38.4]} 35. f4 {[%clk 0:00:44.2]} 35... Qd7 {[%clk 0:00:18.3]} 36. f5 {[%clk
0:00:33.7]} 36... Raxb2 {[%clk 0:00:13.7]} 37. fxe6 {[%clk 0:00:32.7]} 37... Qe8
{[%clk 0:00:05.4]} 38. Rxb2 {[%clk 0:00:20.4]} 38... Rxb2 {[%clk 0:00:06.3]} 39.
e7 {[%clk 0:00:20.8]} 39... Rb5 {[%clk 0:00:04.3]} 40. Rf1 {[%clk 0:00:18.2]}
40... a4 {[%clk 0:00:01.8]} 41. Rf8+ {[%clk 0:00:10]} 41... Qxf8 {[%clk
0:00:02.3]} 42. exf8=Q+ {[%clk 0:00:10.9]} 42... Kxf8 {[%clk 0:00:03.2]} 43.
Qd8+ {[%clk 0:00:11.6]} 43... Kg7 {[%clk 0:00:03.8]} 44. Qd7+ {[%clk 0:00:12.5]}
44... Kh6 {[%clk 0:00:04.3]} 45. Qxb5 {[%clk 0:00:13.4]} 45... a3 {[%clk
0:00:05.2]} 46. Qa4 {[%clk 0:00:13.2]} 46... Kg7 {[%clk 0:00:04.3]} 47. Qxa3
{[%clk 0:00:13.6]} 47... h5 {[%clk 0:00:05.2]} 48. Qc5 {[%clk 0:00:14.2]} 48...
h4 {[%clk 0:00:06.1]} 49. Qxd5 {[%clk 0:00:14.6]} 49... Kh7 {[%clk 0:00:06.5]}
50. Qd4 {[%clk 0:00:15.5]} 50... Kg8 {[%clk 0:00:06.3]} 51. c4 {[%clk
0:00:16.4]} 51... Kh7 {[%clk 0:00:05.5]} 52. c5 {[%clk 0:00:17.3]} 52... Kh6
{[%clk 0:00:05.6]} 53. c6 {[%clk 0:00:18.2]} 53... Kg5 {[%clk 0:00:06.5]} 54. c7
{[%clk 0:00:19.1]} 54... Kh5 {[%clk 0:00:06.9]} 55. c8=Q {[%clk 0:00:19.4]}
55... Kg5 {[%clk 0:00:07.8]} 56. Qcd8+ {[%clk 0:00:19.5]} 56... Kh6 {[%clk
0:00:08.7]} 57. Q4h8# {[%clk 0:00:19.7]} 1-0

[Event "Early-Titled-Tuesday-Blitz-August-29-2023"]
[Site "Chess.com"]
[Date "2023.08.29"]
[Round "1"]
[White "AlexanderL"]
[Black "Haykoooo0o"]
[Result "1-0"]
[WhiteElo "2825"]
[BlackElo "2441"]
[TimeControl "180+1"]
[EndTime "8:07:53 PDT"]
[Termination "AlexanderL won by resignation"]

1. Nf3 {[%clk 0:02:55.7]} 1... Nf6 {[%clk 0:02:59.3]} 2. c4 {[%clk 0:02:54.7]}
2... g6 {[%clk 0:02:54.2]} 3. Nc3 {[%clk 0:02:49.5]} 3... Bg7 {[%clk 0:02:53.1]}
4. e4 {[%clk 0:02:49.3]} 4... d6 {[%clk 0:02:53.5]} 5. d4 {[%clk 0:02:49.1]}
5... O-O {[%clk 0:02:54]} 6. Be2 {[%clk 0:02:49.1]} 6... e5 {[%clk 0:02:54.6]}
7. O-O {[%clk 0:02:48.8]} 7... Nc6 {[%clk 0:02:55.1]} 8. d5 {[%clk 0:02:48.8]}
8... Ne7 {[%clk 0:02:55.8]} 9. Ne1 {[%clk 0:02:48.6]} 9... Nd7 {[%clk
0:02:56.1]} 10. Be3 {[%clk 0:02:46.8]} 10... f5 {[%clk 0:02:56.1]} 11. f3 {[%clk
0:02:46.1]} 11... f4 {[%clk 0:02:50.3]} 12. Bf2 {[%clk 0:02:46.2]} 12... g5
{[%clk 0:02:50.3]} 13. Rc1 {[%clk 0:02:44.9]} 13... h5 {[%clk 0:02:48.2]} 14. c5
{[%clk 0:02:40.7]} 14... a6 {[%clk 0:02:27.5]} 15. Nd3 {[%clk 0:02:24.7]} 15...
Nf6 {[%clk 0:02:21.6]} 16. cxd6 {[%clk 0:02:06.9]} 16... cxd6 {[%clk 0:02:22.5]}
17. Na4 {[%clk 0:02:07.1]} 17... g4 {[%clk 0:01:54.1]} 18. Nb6 {[%clk
0:01:56.7]} 18... g3 {[%clk 0:01:53.3]} 19. Nxa8 {[%clk 0:01:56.9]} 19... gxf2+
{[%clk 0:01:52.9]} 20. Nxf2 {[%clk 0:01:57.8]} 20... Ne8 {[%clk 0:01:32.4]} 21.
Nb6 {[%clk 0:01:53.6]} 21... Qxb6 {[%clk 0:01:29.7]} 22. Qb3 {[%clk 0:01:48.9]}
22... Qd8 {[%clk 0:01:22.9]} 23. Rc2 {[%clk 0:01:47]} 23... b5 {[%clk
0:01:06.5]} 24. Rfc1 {[%clk 0:01:45]} 24... Bd7 {[%clk 0:01:06.7]} 25. Qa3
{[%clk 0:01:43.6]} 25... Qb6 {[%clk 0:01:03.2]} 26. b4 {[%clk 0:01:36.6]} 26...
Bf6 {[%clk 0:00:56.7]} 27. Qa5 {[%clk 0:01:36.3]} 27... Qe3 {[%clk 0:00:51.5]}
28. Qxa6 {[%clk 0:01:30.2]} 28... Bh4 {[%clk 0:00:50.1]} 29. Rf1 {[%clk
0:01:24]} 29... Ng6 {[%clk 0:00:46.5]} 30. Bxb5 {[%clk 0:01:19.1]} 30... Bxb5
{[%clk 0:00:43.8]} 31. Qxb5 {[%clk 0:01:20]} 31... Ng7 {[%clk 0:00:43.2]} 32.
Qe2 {[%clk 0:01:14.3]} 32... Qd4 {[%clk 0:00:42.1]} 33. Rb1 {[%clk 0:01:11.6]}
33... Rb8 {[%clk 0:00:39.1]} 34. b5 {[%clk 0:01:02.5]} 34... Bg3 {[%clk
0:00:35.7]} 35. Kh1 {[%clk 0:00:55.6]} 35... Bxf2 {[%clk 0:00:18.3]} 36. Qxf2
{[%clk 0:00:56.5]} 36... Qa4 {[%clk 0:00:18.4]} 37. b6 {[%clk 0:00:52.8]} 37...
h4 {[%clk 0:00:15.7]} 38. b7 {[%clk 0:00:51.3]} 38... Kh7 {[%clk 0:00:15.4]} 39.
h3 {[%clk 0:00:49]} 39... Qd7 {[%clk 0:00:14.2]} 40. Qa7 {[%clk 0:00:43.1]}
40... Qd8 {[%clk 0:00:09.2]} 41. Qxb8 {[%clk 0:00:42.2]} 41... Qxb8 {[%clk
0:00:10.1]} 42. Rc8 {[%clk 0:00:42.1]} 42... Qa7 {[%clk 0:00:08.1]} 43. b8=Q
{[%clk 0:00:42.4]} 43... Qxa2 {[%clk 0:00:09]} 44. Qb2 {[%clk 0:00:33.2]} 44...
Qa5 {[%clk 0:00:07.4]} 45. Qc3 {[%clk 0:00:29.3]} 45... Qa6 {[%clk 0:00:07]} 46.
Rc6 {[%clk 0:00:26]} 46... Qa2 {[%clk 0:00:06.4]} 47. Qc2 {[%clk 0:00:23.5]}
47... Qa3 {[%clk 0:00:05.3]} 48. Qb3 {[%clk 0:00:20.5]} 48... Qa5 {[%clk
0:00:05.6]} 49. Rxd6 {[%clk 0:00:19.5]} 49... Nh5 {[%clk 0:00:06.2]} 50. Rxg6
{[%clk 0:00:18.6]} 50... Kxg6 {[%clk 0:00:06.5]} 51. Qb6+ {[%clk 0:00:18.3]}
51... Qxb6 {[%clk 0:00:05.2]} 52. Rxb6+ {[%clk 0:00:19.2]} 52... Kf7 {[%clk
0:00:05.9]} 53. Re6 {[%clk 0:00:18.7]} 53... Ng3+ {[%clk 0:00:06.8]} 54. Kh2
{[%clk 0:00:18.8]} 54... Nf1+ {[%clk 0:00:07]} 55. Kg1 {[%clk 0:00:19.3]} 1-0

[Event "Early-Titled-Tuesday-Blitz-August-29-2023"]
[Site "Chess.com"]
[Date "2023.08.29"]
[Round "1"]
[White "AsaHoffmann"]
[Black "Ajedrecista3000"]
[Result "0-1"]
[WhiteElo "2378"]
[BlackElo "2694"]
[TimeControl "180+1"]
[EndTime "8:07:53 PDT"]
[Termination "Ajedrecista3000 won by resignation"]

1. d4 {[%clk 0:02:56.6]} 1... e6 {[%clk 0:02:56.8]} 2. e4 {[%clk 0:02:55.7]}
2... d5 {[%clk 0:02:55]} 3. e5 {[%clk 0:02:55.7]} 3... c5 {[%clk 0:02:54.2]} 4.
Nf3 {[%clk 0:02:55.6]} 4... cxd4 {[%clk 0:02:52.8]} 5. Qxd4 {[%clk 0:02:55.2]}
5... Nc6 {[%clk 0:02:51.7]} 6. Qf4 {[%clk 0:02:55]} 6... Nge7 {[%clk 0:02:49.3]}
7. Bd3 {[%clk 0:02:54.6]} 7... Ng6 {[%clk 0:02:48.8]} 8. Qg3 {[%clk 0:02:54.4]}
8... Qc7 {[%clk 0:02:43.3]} 9. O-O {[%clk 0:02:53.8]} 9... Ncxe5 {[%clk
0:02:16]} 10. Nxe5 {[%clk 0:02:51.4]} 10... Nxe5 {[%clk 0:01:43.4]} 11. Bf4
{[%clk 0:02:49.9]} 11... f6 {[%clk 0:01:43.1]} 12. Nc3 {[%clk 0:02:46.6]} 12...
a6 {[%clk 0:01:39.9]} 13. Rfe1 {[%clk 0:02:45.7]} 13... Bd6 {[%clk 0:01:39.3]}
14. Bxe5 {[%clk 0:02:36.7]} 14... Bxe5 {[%clk 0:01:28]} 15. Rxe5 {[%clk
0:02:08.1]} 15... fxe5 {[%clk 0:01:22]} 16. Re1 {[%clk 0:02:06.1]} 16... Bd7
{[%clk 0:01:17]} 17. Qxg7 {[%clk 0:02:01.9]} 17... O-O-O {[%clk 0:01:16.9]} 18.
Qxe5 {[%clk 0:02:00.7]} 18... Qxe5 {[%clk 0:01:14.2]} 19. Rxe5 {[%clk
0:02:00.3]} 19... Rdf8 {[%clk 0:01:05.3]} 20. g3 {[%clk 0:01:59.1]} 20... Kc7
{[%clk 0:01:03]} 21. f4 {[%clk 0:01:59]} 21... Kd6 {[%clk 0:00:58.9]} 22. Ne2
{[%clk 0:01:55.1]} 22... Rf6 {[%clk 0:00:53.9]} 23. Nd4 {[%clk 0:01:54.4]} 23...
b5 {[%clk 0:00:44.4]} 24. c3 {[%clk 0:01:53.9]} 24... h6 {[%clk 0:00:42.6]} 25.
Nf3 {[%clk 0:01:45]} 25... Rb8 {[%clk 0:00:41.5]} 26. a3 {[%clk 0:01:44.3]}
26... a5 {[%clk 0:00:41.6]} 27. Re2 {[%clk 0:01:37]} 27... b4 {[%clk 0:00:41.9]}
28. axb4 {[%clk 0:01:36.6]} 28... axb4 {[%clk 0:00:42.8]} 29. Ne5 {[%clk
0:01:35.6]} 29... bxc3 {[%clk 0:00:30.6]} 30. bxc3 {[%clk 0:01:35.3]} 30... Rb3
{[%clk 0:00:30.4]} 31. c4 {[%clk 0:01:31.4]} 31... Ra3 {[%clk 0:00:24.9]} 32.
c5+ {[%clk 0:01:20.8]} 32... Kc7 {[%clk 0:00:23.1]} 33. c6 {[%clk 0:01:13.6]}
33... Bc8 {[%clk 0:00:19.2]} 34. Rc2 {[%clk 0:01:03.1]} 34... Rf8 {[%clk
0:00:18.7]} 35. Kg2 {[%clk 0:01:01.1]} 35... Rd8 {[%clk 0:00:18.4]} 36. h3
{[%clk 0:00:58.2]} 36... Ba6 {[%clk 0:00:18.1]} 37. Bxa6 {[%clk 0:00:55.2]}
37... Rxa6 {[%clk 0:00:19]} 38. Rb2 {[%clk 0:00:54.2]} 38... Rb8 {[%clk
0:00:18.1]} 39. Re2 {[%clk 0:00:53.9]} 39... Rb3 {[%clk 0:00:16.7]} 40. Kh2
{[%clk 0:00:43.9]} 40... Raa3 {[%clk 0:00:14.9]} 41. Rg2 {[%clk 0:00:43.3]}
41... d4 {[%clk 0:00:14.6]} 42. g4 {[%clk 0:00:40.2]} 42... Rxh3+ {[%clk
0:00:13.9]} 43. Kg1 {[%clk 0:00:39.8]} 43... Ra1+ {[%clk 0:00:13.7]} 44. Kf2
{[%clk 0:00:39.6]} 44... Ra2+ {[%clk 0:00:14.1]} 45. Kg1 {[%clk 0:00:39.7]}
45... Ra1+ {[%clk 0:00:13.6]} 46. Kf2 {[%clk 0:00:39.8]} 46... Rb3 {[%clk
0:00:13.1]} 47. Nf3 {[%clk 0:00:32.9]} 47... d3 {[%clk 0:00:11]} 48. g5 {[%clk
0:00:31.1]} 48... hxg5 {[%clk 0:00:10.5]} 49. fxg5 {[%clk 0:00:31.1]} 49... Ra2+
{[%clk 0:00:09.5]} 50. Kg3 {[%clk 0:00:31]} 50... Rxg2+ {[%clk 0:00:08.6]} 51.
Kxg2 {[%clk 0:00:30.9]} 51... d2 {[%clk 0:00:09.1]} 52. Nxd2 {[%clk 0:00:29.3]}
52... Rb2 {[%clk 0:00:09.4]} 53. g6 {[%clk 0:00:28.8]} 53... Rxd2+ {[%clk
0:00:09.8]} 54. Kf3 {[%clk 0:00:27.9]} 54... Rd8 {[%clk 0:00:10.1]} 55. Kf4
{[%clk 0:00:27.6]} 55... Kxc6 {[%clk 0:00:10.6]} 56. Kg5 {[%clk 0:00:27.6]}
56... Kd5 {[%clk 0:00:10.1]} 57. Kf6 {[%clk 0:00:27.7]} 57... e5 {[%clk
0:00:10.7]} 58. g7 {[%clk 0:00:27.6]} 58... e4 {[%clk 0:00:11.1]} 0-1

[Event "Early-Titled-Tuesday-Blitz-August-29-2023"]
[Site "Chess.com"]
[Date "2023.08.29"]
[Round "1"]
[White "Real_taiatai"]
[Black "Andreikka"]
[Result "0-1"]
[WhiteElo "2516"]
[BlackElo "3022"]
[TimeControl "180+1"]
[EndTime "8:07:54 PDT"]
[Termination "Andreikka won by checkmate"]

1. d4 {[%clk 0:03:00.6]} 1... d5 {[%clk 0:02:58.5]} 2. c4 {[%clk 0:02:59.9]}
2... e6 {[%clk 0:02:57.6]} 3. Nf3 {[%clk 0:02:53.7]} 3... a6 {[%clk 0:02:54.6]}
4. cxd5 {[%clk 0:02:52]} 4... exd5 {[%clk 0:02:54.7]} 5. Nc3 {[%clk 0:02:52.9]}
5... Nf6 {[%clk 0:02:48.1]} 6. Bf4 {[%clk 0:02:51.8]} 6... c5 {[%clk 0:02:45]}
7. e3 {[%clk 0:02:51.3]} 7... Nc6 {[%clk 0:02:44.8]} 8. dxc5 {[%clk 0:02:40.2]}
8... Bxc5 {[%clk 0:02:45.7]} 9. Be2 {[%clk 0:02:38.4]} 9... h6 {[%clk
0:02:42.8]} 10. O-O {[%clk 0:02:37.8]} 10... O-O {[%clk 0:02:41.9]} 11. Rc1
{[%clk 0:02:38]} 11... Ba7 {[%clk 0:02:35.2]} 12. Ne5 {[%clk 0:02:27]} 12... Re8
{[%clk 0:02:31.3]} 13. Nxc6 {[%clk 0:02:18.9]} 13... bxc6 {[%clk 0:02:32.2]} 14.
Na4 {[%clk 0:02:19.3]} 14... Bd7 {[%clk 0:02:15.8]} 15. Bd6 {[%clk 0:02:07.4]}
15... Ne4 {[%clk 0:02:13.5]} 16. Ba3 {[%clk 0:02:07.8]} 16... Qg5 {[%clk
0:01:46.4]} 17. Nc5 {[%clk 0:01:54.3]} 17... Bh3 {[%clk 0:01:42.8]} 18. Bf3
{[%clk 0:01:52.5]} 18... Bxc5 {[%clk 0:01:22.9]} 19. Bxc5 {[%clk 0:01:51.7]}
19... Re6 {[%clk 0:01:23.6]} 20. Kh1 {[%clk 0:01:40.6]} 20... Bf5 {[%clk
0:01:09.6]} 21. Bd4 {[%clk 0:01:35.6]} 21... Rae8 {[%clk 0:01:08.2]} 22. Qa4
{[%clk 0:01:31.1]} 22... Nd2 {[%clk 0:01:06.5]} 23. Rg1 {[%clk 0:01:25.6]} 23...
Be4 {[%clk 0:00:37]} 24. Qd1 {[%clk 0:01:07.3]} 24... Nc4 {[%clk 0:00:17.4]} 25.
Bxe4 {[%clk 0:01:05.2]} 25... Rxe4 {[%clk 0:00:18.3]} 26. b3 {[%clk 0:01:05]}
26... Nd6 {[%clk 0:00:18]} 27. Rxc6 {[%clk 0:01:04.1]} 27... Nf5 {[%clk
0:00:18.6]} 28. Bb2 {[%clk 0:00:57.3]} 28... Qh4 {[%clk 0:00:17.2]} 29. g3
{[%clk 0:00:47]} 29... Qd8 {[%clk 0:00:17.1]} 30. Qd3 {[%clk 0:00:41]} 30... d4
{[%clk 0:00:11.9]} 31. Rc5 {[%clk 0:00:19.6]} 31... Qa8 {[%clk 0:00:10.6]} 32.
Rg2 {[%clk 0:00:14.5]} 32... Nxe3 {[%clk 0:00:07.5]} 33. f3 {[%clk 0:00:08.8]}
33... R4e7 {[%clk 0:00:04]} 34. Qxd4 {[%clk 0:00:07.1]} 34... f6 {[%clk
0:00:01.9]} 35. Rf2 {[%clk 0:00:05.8]} 35... Rd8 {[%clk 0:00:02]} 36. Qxe3
{[%clk 0:00:01.1]} 36... Rxe3 {[%clk 0:00:01.7]} 37. Kg2 {[%clk 0:00:02]} 37...
Rdd3 {[%clk 0:00:01.6]} 38. Rc7 {[%clk 0:00:02.9]} 38... Rxf3 {[%clk 0:00:01.6]}
39. Rxg7+ {[%clk 0:00:03.8]} 39... Kxg7 {[%clk 0:00:01.6]} 40. Rxf3 {[%clk
0:00:04.5]} 40... Qxf3+ {[%clk 0:00:01.2]} 41. Kh3 {[%clk 0:00:05.4]} 41... Rd2
{[%clk 0:00:01.8]} 42. Bxf6+ {[%clk 0:00:06.3]} 42... Kg6 {[%clk 0:00:01.4]} 43.
Kh4 {[%clk 0:00:07.2]} 43... Qf1 {[%clk 0:00:02]} 44. h3 {[%clk 0:00:08.1]}
44... Rh2 {[%clk 0:00:02.4]} 45. g4 {[%clk 0:00:09]} 45... Qxh3# {[%clk
0:00:03]} 0-1